bitfinex/quotes_BTCUSD_20260311
["timestamp","ask_amount","ask_price","bid_price","bid_amount"]
[1773206912351,0.01552821,69982.0,69970.0,0.0006]
[1773206912730,0.01552821,69982.0,69970.0,0.00204]
[1773206915064,0.01552821,69980.0,69958.0,0.07147116]
[1773206915264,0.01552821,69978.0,69957.0,0.00144]
[1773206915421,0.01552821,69978.0,69956.0,0.07729327]
[1773206915760,0.01552821,69978.0,69957.0,0.00144]
[1773206916165,0.01565431,69978.0,69957.0,0.00144]
[1773206916524,0.01665431,69978.0,69957.0,0.00144]
[1773206916931,0.07145204,69977.0,69957.0,0.00144]
[1773206917131,0.01649033,69976.0,69957.0,0.00144]
[1773206918357,0.01749033,69976.0,69957.0,0.00144]
[1773206918763,0.01749033,69976.0,69959.0,1e-08]
[1773206919126,0.07145409,69975.0,69959.0,1e-08]
[1773206919362,0.01649033,69974.0,69959.0,1e-08]
[1773206919964,0.01649033,69972.0,69959.0,1e-08]
[1773206921158,0.07145817,69971.0,69959.0,5.868e-05]
[1773206921391,0.01649033,69970.0,69959.0,5.868e-05]
[1773206923166,0.07146021,69969.0,69959.0,5.868e-05]
[1773206923469,0.01649033,69968.0,69959.0,5.868e-05]
[1773206923702,0.07146021,69969.0,69959.0,5.868e-05]
[1773206923703,0.01649033,69966.0,69959.0,5.868e-05]
[1773206924776,0.01649033,69966.0,69956.0,0.00582]
[1773206924982,0.01649033,69966.0,69956.0,0.00587866]
[1773206925583,0.01649033,69964.0,69956.0,0.00587866]
[1773206928015,0.01649033,69964.0,69950.0,0.12073903]
[1773206928016,0.01649033,69962.0,69940.0,0.04915639]
[1773206928320,0.01649033,69960.0,69947.0,0.12688497]
[1773206928880,0.01649033,69960.0,69947.0,0.12708497]
[1773206930127,0.01788441,69958.0,69947.0,0.12708497]
[1773206931629,2e-08,69957.0,69947.0,0.12708497]
[1773206931936,0.01788443,69957.0,69947.0,0.12708497]
[1773206932459,0.07147349,69956.0,69947.0,0.12708497]
[1773206932622,0.00144,69955.0,69947.0,0.12708497]
[1773206937689,0.07147554,69954.0,69947.0,0.12708497]
[1773206940195,0.07147554,69954.0,69941.0,0.01792421]
[1773206940398,0.07147554,69954.0,69941.0,0.01803592]
[1773206940602,0.07291554,69955.0,69941.0,0.07160026]
[1773206940603,0.00144,69955.0,69941.0,0.07160026]
[1773206940802,0.07146874,69961.0,69941.0,0.07160026]
[1773206940803,0.07146941,69960.0,69945.0,0.0179242]
[1773206940949,0.00144,69960.0,69951.0,0.0179242]
[1773206941163,0.07146887,69961.0,69953.0,0.0179242]
[1773206941385,0.07146887,69961.0,69953.0,0.0183406]
[1773206941583,0.00144,69965.0,69953.0,0.0183406]
[1773206941805,0.00144,69966.0,69953.0,0.0183406]
[1773206942012,0.001,69954.0,69953.0,0.0183406]
[1773206942377,0.07146564,69964.0,69953.0,0.07189296]
[1773206942609,0.07146754,69962.0,69954.0,0.0179242]
[1773206943121,0.07146634,69963.0,69954.0,0.0179242]
[1773206943337,0.07146634,69963.0,69954.0,0.0183406]
[1773206944037,0.00022001,69962.0,69954.0,0.0183406]
[1773206944598,0.07146838,69961.0,69954.0,0.0183406]
[1773206944925,0.07146838,69961.0,69955.0,0.0179242]
[1773206946191,0.07146838,69961.0,69955.0,0.0189242]
[1773206947505,0.07146838,69961.0,69955.0,0.001]
[1773206948315,0.07146838,69961.0,69954.0,0.0018564]
[1773206948725,0.07146838,69961.0,69955.0,0.001]
[1773206948927,0.07146838,69961.0,69954.0,0.0018564]
[1773206949326,0.07146838,69961.0,69954.0,0.0004164]
[1773206951344,0.0714643,69965.0,69955.0,0.0179242]
[1773206952968,0.0714643,69965.0,69955.0,0.0189242]
[1773206953273,0.0714643,69967.0,69955.0,0.07147359]
[1773206953478,0.0714643,69967.0,69956.0,0.0179242]
[1773206954474,0.0714643,69967.0,69956.0,0.0182039]
[1773206956243,0.0714643,69967.0,69956.0,0.0896773]
[1773206958487,0.07168431,69967.0,69956.0,0.0182039]
[1773206959855,0.07153089,69967.0,69956.0,0.0182039]
[1773206962928,0.07098888,69967.0,69956.0,0.0182039]
[1773206963753,0.07098888,69967.0,69956.0,0.08967723]
[1773206964098,0.07098888,69967.0,69956.0,0.0182039]
[1773206965740,0.07098888,69967.0,69956.0,0.08946341]
[1773206966760,0.07145817,69972.0,69958.0,0.01771034]
[1773206966978,0.07167614,69974.0,69961.0,0.01771034]
[1773206967612,0.07167614,69974.0,69963.0,0.01771034]
[1773206968409,0.07149195,69974.0,69963.0,0.01771034]
[1773206968615,0.07149195,69974.0,69963.0,0.01785334]
[1773206968616,3.582e-05,69974.0,69963.0,0.01785334]
[1773206968762,0.00014774,69974.0,69963.0,0.01785334]
[1773206969820,0.00014774,69974.0,69965.0,0.01771034]
[1773206969980,0.00014774,69974.0,69967.0,0.01771034]
[1773206970585,0.00014774,69974.0,69967.0,0.01785334]
[1773206970777,0.00014774,69974.0,69967.0,0.000143]
[1773206971312,0.00014774,69974.0,69967.0,0.001143]
[1773206972030,0.00014774,69974.0,69967.0,0.000143]
[1773206972463,0.00014774,69974.0,69967.0,0.07160507]
[1773206972937,0.00014774,69974.0,69968.0,0.01771034]
[1773206973726,0.00014774,69974.0,69968.0,0.01785334]
[1773206973937,0.00014774,69974.0,69968.0,0.000143]
[1773206975398,0.00014774,69974.0,69960.0,0.04903029]
[1773206975399,0.01811148,69974.0,69960.0,0.04903029]
[1773206975608,0.01811148,69974.0,69961.0,0.07304459]
[1773206976027,0.01814311,69972.0,69961.0,0.07304459]
[1773206977419,0.01814311,69972.0,69961.0,0.0015767]
[1773206977834,0.01814311,69972.0,69961.0,0.07304417]
[1773206978213,0.07145817,69971.0,69961.0,0.07260417]
[1773206978615,0.07145817,69971.0,69961.0,0.07160417]
[1773206980776,0.00014774,69974.0,69962.0,0.01849114]
[1773206980931,0.00022001,69979.0,69965.0,0.01849114]
[1773206981131,0.07167003,69979.0,69970.0,0.01849114]
[1773206982577,0.07167003,69979.0,69971.0,0.07145817]
[1773206983333,0.01814311,69978.0,69961.0,0.0001367]
[1773206983541,0.01825507,69978.0,69961.0,0.07304432]
[1773206984333,0.00144,69977.0,69961.0,0.07304432]
[1773206984541,0.01814311,69974.0,69961.0,0.07304432]
[1773206985653,0.01814311,69974.0,69961.0,0.07160432]
[1773206985850,0.01814311,69974.0,69961.0,0.07304432]
[1773206988259,0.07145613,69973.0,69961.0,0.07324432]
[1773207000919,0.01756351,69972.0,69957.0,0.21414937]
[1773207001130,0.01756351,69972.0,69958.0,0.00144]
[1773207001328,0.01756351,69970.0,69956.0,0.07167257]
[1773207001609,0.01756351,69970.0,69957.0,0.00144]
[1773207002691,0.00144,69971.0,69957.0,0.01832413]
[1773207003050,0.07145919,69970.0,69958.0,0.07147145]
[1773207003287,0.07145919,69970.0,69961.0,0.0002]
[1773207003987,0.07184789,69970.0,69961.0,0.0002]
[1773207005407,0.01756351,69969.0,69961.0,0.0002]
[1773207005712,0.01756351,69969.0,69954.0,0.0002]
[1773207006014,0.01795221,69969.0,69954.0,0.00164]
[1773207006242,0.01795221,69969.0,69946.0,0.21414937]
[1773207006376,0.01795221,69969.0,69934.0,0.01688413]
[1773207006572,0.01795221,69969.0,69930.0,0.0001217]
[1773207006573,0.14265267,69968.0,69930.0,0.0001217]
[1773207006798,0.01756351,69966.0,69931.0,0.07149898]
[1773207006973,0.01756351,69964.0,69932.0,0.07149779]
[1773207007195,0.01756351,69961.0,69932.0,0.07149779]
[1773207007518,0.01756351,69961.0,69935.0,1e-08]
[1773207007720,0.01756351,69961.0,69931.0,0.00144]
[1773207007864,0.01756351,69961.0,69930.0,0.0730617]
[1773207008270,0.01756351,69961.0,69930.0,0.0716217]
[1773207008476,0.01756351,69961.0,69930.0,0.0730617]
[1773207008895,0.01756351,69961.0,69930.0,0.0716217]
[1773207009096,0.07146941,69960.0,69930.0,0.0716217]
[1773207009434,0.01756351,69958.0,69928.0,0.02250413]
[1773207009623,0.01756351,69958.0,69928.0,0.09400603]
[1773207010321,0.01756351,69958.0,69928.0,0.0954455]
[1773207010623,0.01756351,69955.0,69925.0,0.00167]
[1773207011096,0.01781871,69955.0,69926.0,0.01688413]
[1773207011234,0.07291554,69954.0,69939.0,0.01688413]
[1773207011572,0.01756351,69953.0,69939.0,0.01688413]
[1773207011799,0.01756351,69953.0,69939.0,0.01699584]
[1773207012142,0.01900351,69952.0,69939.0,0.01699584]
[1773207012359,0.01900351,69952.0,69927.0,0.07150313]
[1773207012564,0.01911541,69952.0,69928.0,0.01688413]
[1773207012948,0.01911541,69952.0,69930.0,0.06592664]
[1773207013146,0.0714786,69951.0,69931.0,0.07149904]
[1773207013352,0.01756351,69950.0,69931.0,0.07149904]
[1773207014148,0.01769111,69950.0,69931.0,0.07149904]
[1773207014844,0.01756351,69948.0,69931.0,0.07149904]
[1773207015135,0.01769111,69948.0,69931.0,0.07149904]
[1773207015301,0.07148371,69946.0,69931.0,0.07149904]
[1773207015476,0.01756351,69945.0,69931.0,0.07149904]
[1773207015861,0.00144,69944.0,69931.0,0.07149904]
[1773207016283,0.00144,69943.0,69931.0,0.07149904]
[1773207016668,0.01756351,69945.0,69931.0,0.07149904]
[1773207016874,0.00144,69944.0,69930.0,0.01688413]
[1773207017307,0.0714878,69942.0,69930.0,0.01688413]
[1773207017485,0.0729278,69942.0,69930.0,0.0883839]
[1773207017689,0.0001276,69948.0,69930.0,0.0883839]
[1773207017690,0.0001276,69955.0,69931.0,0.01832413]
[1773207017913,0.0715901,69952.0,69941.0,0.01688413]
[1773207018113,0.0730301,69952.0,69941.0,0.01688413]
[1773207020447,0.0730301,69952.0,69939.0,0.07149075]
[1773207021502,0.0730301,69952.0,69940.0,0.01838848]
[1773207021684,0.0730301,69952.0,69941.0,0.08843762]
[1773207022436,0.0730301,69952.0,69941.0,0.07148808]
[1773207022588,0.0730301,69952.0,69941.0,0.08987656]
[1773207024596,0.0730301,69952.0,69941.0,0.07148808]
[1773207024792,0.0730301,69952.0,69940.0,0.08987814]
[1773207025247,0.0730301,69952.0,69940.0,0.01838848]
[1773207026269,0.0730301,69952.0,69940.0,0.0898782]
[1773207027580,0.0730301,69952.0,69940.0,0.01838848]
[1773207029161,0.01964855,69951.0,69939.0,0.0714902]
[1773207030351,0.07147962,69950.0,69937.0,0.07293237]
[1773207030625,0.07147962,69950.0,69938.0,0.01838848]
[1773207031809,0.07147962,69950.0,69938.0,0.01938848]
[1773207033148,0.07147962,69950.0,69939.0,0.07149087]
[1773207034353,0.14235674,69955.0,69941.0,0.01838848]
[1773207034529,0.07709441,69956.0,69946.0,0.01838848]
[1773207035168,0.07709441,69956.0,69946.0,0.08987118]
[1773207035648,0.00022001,69952.0,69946.0,0.08987118]
[1773207036000,0.00022001,69952.0,69941.0,0.0001119]
[1773207036208,0.01964855,69951.0,69941.0,0.0001119]
[1773207037150,0.01964855,69951.0,69934.0,0.07149536]
[1773207037151,0.07147962,69950.0,69928.0,0.00144]
[1773207037352,0.01964855,69949.0,69926.0,0.01838848]
[1773207037553,0.01964855,69949.0,69926.0,0.07150402]
[1773207038366,0.01964855,69949.0,69925.0,0.07193503]
[1773207038955,0.01983915,69949.0,69918.0,0.0002]
[1773207039155,0.01983915,69949.0,69918.0,0.07171196]
[1773207039355,0.01964855,69947.0,69918.0,0.0002]
[1773207041160,0.02164855,69947.0,69918.0,0.0002]
[1773207041379,0.01964855,69945.0,69918.0,0.0002]
[1773207041591,0.01888866,69943.0,69918.0,0.0002]
[1773207043600,0.01888866,69941.0,69918.0,0.0002]
[1773207044001,0.0714878,69942.0,69930.0,0.04906176]
[1773207044445,0.00144,69941.0,69928.0,0.0188075]
[1773207044658,0.00144,69941.0,69923.0,0.00144]
[1773207044856,0.01888866,69940.0,69923.0,0.00144]
[1773207045017,0.01888866,69940.0,69923.0,0.0202475]
[1773207045632,0.07149087,69939.0,69925.0,0.0188075]
[1773207046256,0.07293087,69939.0,69925.0,0.0188075]
[1773207050506,0.07293087,69939.0,69927.0,0.01923638]
[1773207052396,0.07293087,69939.0,69929.0,0.01923638]
[1773207052833,0.07149087,69939.0,69929.0,0.01923638]
[1773207054908,0.07249087,69939.0,69925.0,0.0715046]
[1773207055313,0.07171088,69939.0,69925.0,0.09074098]
[1773207055508,0.07171088,69939.0,69925.0,0.0715046]
[1773207055728,0.07171088,69939.0,69926.0,0.01923638]
[1773207055729,0.07271088,69939.0,69926.0,0.01923638]
[1773207057326,0.07271088,69939.0,69926.0,0.09073964]
[1773207057327,0.07171088,69939.0,69926.0,0.09073964]
[1773207059659,0.08991702,69939.0,69926.0,0.09073964]
[1773207060023,0.01820614,69938.0,69926.0,0.07150326]
[1773207060223,0.01820614,69938.0,69923.0,0.07314689]
[1773207060768,0.01820614,69938.0,69923.0,0.00164]
[1773207060968,0.07171088,69939.0,69923.0,0.0731471]
[1773207060969,0.00144,69937.0,69923.0,0.0731471]
[1773207061116,0.01820614,69936.0,69923.0,0.0731471]
[1773207061315,0.01820614,69934.0,69923.0,0.0002]
[1773207061516,0.01820614,69934.0,69917.0,0.0004]
[1773207062668,0.01820614,69934.0,69917.0,0.07191319]
[1773207063421,0.01820614,69934.0,69883.0,0.51498631]
[1773207063422,0.071497,69933.0,69900.0,0.00585]
[1773207063620,0.01820614,69932.0,69902.0,1e-08]
[1773207063866,0.01820614,69932.0,69903.0,0.01923638]
[1773207064081,0.00144,69931.0,69903.0,0.01923638]
[1773207064274,0.01820614,69928.0,69902.0,1e-08]
[1773207064625,0.01820614,69926.0,69902.0,0.07152858]
[1773207065291,0.01820614,69926.0,69902.0,1e-08]
[1773207065516,0.01820614,69924.0,69902.0,1e-08]
[1773207067572,0.01820614,69922.0,69902.0,1e-08]
[1773207067775,0.01820614,69920.0,69902.0,1e-08]
[1773207069182,0.01920614,69920.0,69902.0,1e-08]
[1773207069714,0.01820614,69918.0,69902.0,0.01923639]
[1773207069884,0.01320614,69918.0,69902.0,0.01923639]
[1773207070707,0.07151132,69919.0,69908.0,0.04906176]
[1773207071072,0.07151132,69919.0,69909.0,0.01923638]
[1773207071259,0.07151132,69919.0,69902.0,1e-08]
[1773207071459,0.07151132,69919.0,69904.0,0.01923638]
[1773207072160,0.07151132,69919.0,69905.0,0.01923638]
[1773207075752,0.07151029,69920.0,69907.0,0.01923638]
[1773207075977,0.001,69919.0,69907.0,0.01923638]
[1773207077853,0.07151234,69918.0,69909.0,0.01923638]
[1773207078043,0.07151234,69918.0,69910.0,0.02067638]
[1773207078840,0.001,69919.0,69910.0,0.02067638]
[1773207079038,0.17011323,69942.0,69910.0,0.02067638]
[1773207079039,0.00144,69931.0,69910.0,0.02067638]
[1773207079291,0.07150518,69925.0,69911.0,0.01923638]
[1773207079491,0.07150518,69925.0,69910.0,0.05050176]
[1773207079492,0.07150518,69925.0,69912.0,0.00144]
[1773207079794,0.07150518,69925.0,69913.0,0.01908248]
[1773207079995,0.0001119,69926.0,69915.0,0.01908248]
[1773207080205,0.0001119,69926.0,69915.0,0.0189137]
[1773207080699,0.0001119,69926.0,69916.0,0.00144]
[1773207081613,0.0001119,69926.0,69917.0,0.00144]
[1773207082015,0.0001119,69926.0,69918.0,0.00144]
[1773207082683,0.0001119,69926.0,69918.0,0.00127125]
[1773207083399,0.0001119,69926.0,69919.0,0.00144]
[1773207085007,0.0001119,69926.0,69919.0,0.07295114]
[1773207085604,0.0001119,69926.0,69919.0,0.07244502]
[1773207086306,0.0001119,69926.0,69919.0,0.00093388]
[1773207087410,0.0001119,69926.0,69919.0,0.07244472]
[1773207087708,0.07149904,69931.0,69919.0,0.07244472]
[1773207087709,0.07149904,69931.0,69920.0,0.01908248]
[1773207087887,0.01889534,69930.0,69919.0,0.00093388]
[1773207088059,0.01889534,69930.0,69919.0,0.00104578]
[1773207088573,0.01889534,69930.0,69919.0,0.0015519]
[1773207089712,0.01889534,69928.0,69919.0,0.0015519]
[1773207089910,0.01889534,69928.0,69919.0,0.00121449]
[1773207090205,0.01889534,69928.0,69913.0,0.07151649]
[1773207090416,0.0190073,69928.0,69918.0,0.00127129]
[1773207093757,0.07150313,69927.0,69913.0,0.07151649]
[1773207093942,0.07150313,69927.0,69917.0,0.00144]
[1773207094317,0.07150313,69927.0,69917.0,0.02052248]
[1773207094518,0.07150313,69927.0,69917.0,0.00144]
[1773207095121,0.09039847,69927.0,69917.0,0.00144]
[1773207095897,0.09039847,69927.0,69917.0,0.0729532]
[1773207096194,0.07150313,69927.0,69917.0,0.0729532]
[1773207097993,0.07250313,69927.0,69917.0,0.0729532]
[1773207098615,0.00033197,69928.0,69918.0,0.0196362]
[1773207098815,0.07183472,69928.0,69918.0,0.0196362]
[1773207100216,0.07183472,69928.0,69919.0,0.07151132]
[1773207100422,0.07183472,69928.0,69919.0,0.09114752]
[1773207101787,0.00033197,69928.0,69919.0,0.09114752]
[1773207101974,0.07183423,69928.0,69919.0,0.09114752]
[1773207105826,0.07183423,69928.0,69919.0,0.07151132]
[1773207108760,0.07183423,69928.0,69918.0,0.07151166]
[1773207114266,0.07183419,69928.0,69918.0,0.07151166]
[1773207114449,0.14254443,69932.0,69919.0,0.01916386]
[1773207114647,0.00062001,69935.0,69919.0,0.01927582]
[1773207114859,0.14255551,69940.0,69925.0,0.049099]
[1773207115017,0.14255551,69940.0,69929.0,0.06826286]
[1773207115018,0.07171137,69939.0,69929.0,0.06826286]
[1773207115216,0.07171137,69939.0,69929.0,0.01916386]
[1773207117368,1e-08,69939.0,69931.0,0.01916386]
[1773207117577,1e-08,69939.0,69930.0,0.07150007]
[1773207117938,0.07149095,69939.0,69930.0,0.07150007]
[1773207118149,0.07149095,69939.0,69927.0,0.07150252]
[1773207118150,0.02013088,69938.0,69927.0,0.07150252]
[1773207118311,0.02013088,69938.0,69921.0,0.07150914]
[1773207118520,0.07149095,69939.0,69923.0,0.01916386]
[1773207118699,0.07149095,69939.0,69929.0,0.049099]
[1773207119013,0.07149167,69939.0,69929.0,0.00144]
[1773207119217,1e-08,69939.0,69929.0,0.00144]
[1773207119417,1e-08,69939.0,69931.0,0.01916386]
[1773207120924,1e-08,69939.0,69931.0,0.02016386]
[1773207121628,1e-08,69939.0,69932.0,0.07149802]
[1773207122914,1e-08,69939.0,69933.0,0.01916386]
[1773207123320,1e-08,69939.0,69932.0,0.07149802]
[1773207123775,1e-08,69939.0,69931.0,0.07149802]
[1773207123935,1e-08,69939.0,69932.0,0.001]
[1773207124135,1e-08,69939.0,69931.0,0.07149802]
[1773207124664,1e-08,69939.0,69932.0,0.001]
[1773207124868,0.01186798,69942.0,69932.0,0.001]
[1773207125718,0.07170381,69946.0,69933.0,0.071497]
[1773207126195,0.08367132,69955.0,69937.0,0.01916386]
[1773207126196,0.07171024,69950.0,69937.0,0.01916386]
[1773207126352,0.07171024,69950.0,69938.0,0.00144]
[1773207126551,0.07171024,69950.0,69935.0,0.01916386]
[1773207126814,0.07171024,69950.0,69936.0,0.00144]
[1773207126976,0.07171024,69950.0,69937.0,0.00144]
[1773207127293,0.07171024,69950.0,69933.0,0.071497]
[1773207127491,0.00023,69950.0,69940.0,0.06826286]
[1773207127692,0.00023,69950.0,69941.0,0.00144]
[1773207127895,0.00023,69950.0,69942.0,0.0714878]
[1773207128192,0.00123,69950.0,69942.0,0.0714878]
[1773207128393,0.02013088,69949.0,69941.0,0.00144]
[1773207128701,0.02024288,69949.0,69942.0,0.00144]
[1773207129501,0.02024288,69949.0,69934.0,0.07149393]
[1773207129698,0.02024288,69949.0,69935.0,0.00144]
[1773207129917,0.07148167,69948.0,69926.0,0.07150416]
[1773207130215,0.02013088,69947.0,69927.0,0.00144]
[1773207130796,0.02013088,69947.0,69925.0,0.00144]
[1773207130974,0.02013088,69947.0,69921.0,0.07167178]
[1773207131174,0.02013088,69947.0,69922.0,0.00144]
[1773207131608,0.02013088,69947.0,69923.0,0.00144]
[1773207131810,0.02213088,69947.0,69923.0,0.00144]
[1773207132426,0.02013088,69945.0,69924.0,0.0715062]
[1773207132626,0.02013088,69943.0,69924.0,0.0715062]
[1773207134409,0.0714878,69942.0,69924.0,0.0715062]
[1773207134607,0.02013088,69941.0,69924.0,0.0715062]
[1773207135548,0.02013088,69941.0,69923.0,0.07150654]
[1773207136379,0.02013088,69941.0,69923.0,0.00144]
[1773207136558,0.02013088,69939.0,69923.0,0.00144]
[1773207136763,0.02013088,69937.0,69923.0,0.00144]
[1773207138468,0.02013088,69937.0,69923.0,0.0729472]
[1773207138646,0.02013088,69935.0,69923.0,0.0729472]
[1773207139269,0.02013088,69935.0,69923.0,0.00144]
[1773207140588,0.07149598,69934.0,69923.0,0.00144]
[1773207140815,0.01970284,69933.0,69923.0,0.00144]
[1773207142582,0.07149802,69932.0,69923.0,0.00244]
[1773207142797,0.01954922,69931.0,69923.0,0.00244]
[1773207143001,0.01954922,69931.0,69923.0,0.00264]
[1773207144189,0.01954922,69931.0,69923.0,0.00164]
[1773207144711,0.07150007,69930.0,69923.0,0.00164]
[1773207145212,0.00041761,69935.0,69924.0,0.01926322]
[1773207145411,0.00041761,69935.0,69926.0,0.01926322]
[1773207145571,0.07191308,69935.0,69926.0,0.01926322]
[1773207147209,0.07191308,69935.0,69927.0,0.07150313]
[1773207149568,0.07191308,69935.0,69924.0,0.07150571]
[1773207149751,0.01970284,69934.0,69925.0,0.00144]
[1773207150114,0.01970284,69934.0,69924.0,0.07150571]
[1773207150317,0.01970284,69934.0,69926.0,0.00144]
[1773207150738,0.071497,69933.0,69927.0,0.00144]
[1773207151133,0.071497,69933.0,69923.0,0.0002]
[1773207151339,0.071497,69933.0,69927.0,0.00144]
[1773207151910,0.09119984,69933.0,69927.0,0.00144]
[1773207152155,0.09119984,69933.0,69923.0,0.0002]
[1773207152352,0.09119984,69933.0,69927.0,0.00144]
[1773207153259,0.09119984,69933.0,69926.0,0.00144]
[1773207154432,0.09104624,69933.0,69926.0,0.00144]
[1773207154632,0.09104624,69933.0,69923.0,0.0002]
[1773207154856,0.09104624,69933.0,69926.0,0.00144]
[1773207155181,0.09104624,69933.0,69923.0,0.0002]
[1773207155358,0.09104624,69933.0,69927.0,0.00144]
[1773207155867,0.09104624,69933.0,69923.0,0.0002]
[1773207156068,0.090278,69933.0,69926.0,0.00144]
[1773207156362,0.090278,69933.0,69923.0,0.0002]
[1773207156563,0.090278,69933.0,69927.0,0.00144]
[1773207157108,0.090278,69933.0,69925.0,0.00144]
[1773207157273,0.01824905,69932.0,69924.0,0.00144]
[1773207159205,0.07149904,69931.0,69924.0,0.00164]
[1773207160441,0.07149904,69931.0,69924.0,0.0002]
[1773207161552,0.001,69931.0,69924.0,0.0002]
[1773207162199,0.07149809,69932.0,69924.0,0.0002]
[1773207162401,0.001,69931.0,69924.0,0.0002]
[1773207162599,0.002,69931.0,69924.0,0.0002]
[1773207163011,0.001,69931.0,69924.0,0.0002]
[1773207164041,0.07149809,69932.0,69924.0,0.0002]
[1773207165147,0.00041761,69935.0,69924.0,0.0002]
[1773207165308,0.00041761,69935.0,69926.0,0.01566211]
[1773207165652,0.07191262,69935.0,69926.0,0.01566211]
[1773207165816,0.07191262,69935.0,69927.0,0.00144]
[1773207166609,0.00041761,69935.0,69928.0,0.08713224]
[1773207169163,0.1426559,69939.0,69928.0,0.07150211]
[1773207169363,0.0001558,69943.0,69931.0,0.0155296]
[1773207169569,0.07164286,69943.0,69931.0,0.0155296]
[1773207171091,0.0001558,69943.0,69932.0,0.07149802]
[1773207171276,0.0001558,69943.0,69933.0,0.00144]
[1773207172855,0.0001558,69943.0,69933.0,0.01777394]
[1773207173262,0.0001558,69943.0,69934.0,0.07149598]
[1773207173670,0.0001558,69943.0,69934.0,0.08779362]
[1773207174892,0.0001558,69943.0,69935.0,0.01626128]
[1773207175055,0.07170328,69947.0,69935.0,0.01626128]
[1773207175260,0.07170328,69947.0,69936.0,0.08164179]
[1773207175453,0.07170328,69947.0,69936.0,0.07149393]
[1773207175869,0.09151462,69947.0,69936.0,0.07149393]
[1773207176193,0.07170319,69947.0,69937.0,0.0490946]
[1773207176548,0.00022001,69947.0,69937.0,0.0490946]
[1773207176796,0.00022001,69947.0,69938.0,0.01011237]
[1773207176960,0.00022001,69947.0,69939.0,0.00144]
[1773207177384,0.00022001,69947.0,69940.0,0.07148984]
[1773207177584,0.00022001,69943.0,69940.0,0.07148984]
[1773207177784,0.00022001,69943.0,69941.0,0.01007585]
[1773207179295,0.00022001,69943.0,69942.0,0.0714878]
[1773207181333,0.00022001,69943.0,69940.0,0.07148984]
[1773207183506,0.00022001,69943.0,69940.0,0.07248984]
[1773207185358,0.00022001,69943.0,69940.0,0.07148984]
[1773207185560,0.00022001,69947.0,69940.0,0.07148984]
[1773207185886,0.000112,69949.0,69940.0,0.07148984]
[1773207186066,0.000112,69949.0,69941.0,0.00978196]
[1773207186267,0.00077581,69952.0,69941.0,0.00978196]
[1773207186508,0.00077581,69952.0,69941.0,0.00989396]
[1773207187784,1e-08,69954.0,69942.0,0.0714878]
[1773207187937,1e-08,69955.0,69945.0,0.00971432]
[1773207188132,1e-08,69955.0,69946.0,0.01115432]
[1773207189447,1e-08,69955.0,69946.0,0.00244]
[1773207189654,1e-08,69955.0,69946.0,0.0037348]
[1773207189851,1e-08,69955.0,69947.0,0.07148269]
[1773207190684,1e-08,69955.0,69947.0,0.07177749]
[1773207192362,0.01981135,69955.0,69947.0,0.07277749]
[1773207192764,0.01981135,69955.0,69942.0,0.0714878]
[1773207192965,0.01981135,69955.0,69948.0,0.00144]
[1773207193171,1e-08,69955.0,69948.0,0.00144]
[1773207194363,0.01981135,69955.0,69945.0,0.00144]
[1773207195056,0.02003136,69955.0,69946.0,0.00144]
[1773207195678,0.02003136,69955.0,69941.0,0.07160046]
[1773207195976,0.02003136,69955.0,69942.0,0.00144]
[1773207196198,0.02003136,69955.0,69943.0,0.00144]
[1773207196918,0.01981134,69953.0,69943.0,0.00144]
[1773207199005,0.01981134,69951.0,69943.0,0.00144]
[1773207199207,0.01857785,69951.0,69943.0,0.00144]
[1773207199411,0.01842408,69951.0,69943.0,0.00144]
[1773207199999,0.01842408,69951.0,69941.0,0.000112]
[1773207200243,0.01842408,69951.0,69942.0,0.00144]
[1773207200620,0.01942408,69951.0,69942.0,0.00144]
[1773207201748,0.001,69951.0,69943.0,0.07949794]
[1773207201952,0.07169491,69955.0,69944.0,0.00801116]
[1773207202318,0.07169491,69955.0,69945.0,0.0490946]
[1773207202648,0.001,69951.0,69945.0,0.0490946]
[1773207202861,0.001,69951.0,69944.0,0.00801116]
[1773207203027,0.00022001,69952.0,69944.0,0.00801116]
[1773207204421,0.00022001,69952.0,69945.0,0.07148473]
[1773207206680,0.00562,69956.0,69946.0,0.0078431]
[1773207206907,0.00022001,69957.0,69947.0,0.0078431]
[1773207207103,0.00022001,69957.0,69948.0,0.00144]
[1773207208574,0.07169307,69957.0,69949.0,0.07148065]
[1773207209175,0.00022001,69957.0,69949.0,0.07148065]
[1773207209995,0.07169265,69957.0,69949.0,0.07148065]
[1773207211277,0.01806371,69956.0,69949.0,0.07148065]
[1773207211794,0.01806371,69956.0,69948.0,0.07292065]
[1773207212793,0.01806371,69956.0,69949.0,0.00144]
[1773207213180,0.01806371,69956.0,69950.0,0.07147962]
[1773207213790,0.01806371,69956.0,69951.0,0.00144]
[1773207215184,0.01806371,69956.0,69941.0,0.29392169]
[1773207215431,0.01806371,69956.0,69943.0,0.00144]
[1773207215811,0.01806371,69956.0,69944.0,0.00144]
[1773207216182,0.01806371,69956.0,69942.0,0.28599153]
[1773207216408,0.01806371,69956.0,69943.0,0.00144]
[1773207217132,0.01806371,69956.0,69943.0,0.00164]
[1773207217285,0.01828372,69956.0,69944.0,0.07148576]
[1773207217922,0.01828372,69956.0,69945.0,0.00144]
[1773207218765,0.01828372,69956.0,69944.0,0.07148576]
[1773207219065,0.01828372,69956.0,69946.0,0.00144]
[1773207219273,0.01828372,69956.0,69944.0,0.07148576]
[1773207219466,0.01828372,69956.0,69948.0,0.07148167]
[1773207219878,0.01828372,69956.0,69949.0,0.00144]
[1773207220232,0.01828372,69956.0,69948.0,0.07148167]
[1773207220565,0.01828372,69956.0,69949.0,0.00144]
[1773207220722,0.01890294,69954.0,69947.0,0.07148219]
[1773207220925,0.01890294,69954.0,69948.0,0.00144]
[1773207221776,0.09037881,69954.0,69948.0,0.00144]
[1773207224279,0.09037881,69954.0,69946.0,0.07148328]
[1773207224479,0.01890294,69953.0,69949.0,0.00144]
[1773207225285,0.01890294,69953.0,69949.0,0.00127108]
[1773207226084,0.01890294,69952.0,69943.0,0.0002]
[1773207226295,0.01890294,69952.0,69940.0,0.12091006]
[1773207226296,0.01890294,69952.0,69940.0,0.000368]
[1773207226487,0.01890294,69952.0,69937.0,0.07149274]
[1773207226488,0.01900968,69952.0,69941.0,0.00144]
[1773207226867,0.01900968,69952.0,69942.0,0.00144]
[1773207227142,0.01900968,69952.0,69942.0,0.00164]
[1773207227278,0.01900968,69952.0,69942.0,0.0002]
[1773207227617,0.01900968,69952.0,69941.0,0.00144]
[1773207227775,0.01900968,69952.0,69937.0,0.07149231]
[1773207227969,0.01900968,69952.0,69938.0,0.00144]
[1773207228184,0.01900968,69952.0,69936.0,0.0002]
[1773207228185,0.01890294,69950.0,69939.0,0.00144]
[1773207229018,0.01890294,69950.0,69940.0,0.00144]
[1773207230007,0.01890294,69950.0,69940.0,0.00127107]